bitfinex/quotes_BTCUSD_20241003
["timestamp","ask_amount","ask_price","bid_price","bid_amount"]
[1727914239800,0.17648306,60919.0,60918.0,0.18538]
[1727914240037,0.17648306,60919.0,60918.0,0.19738]
[1727914240268,0.17648306,60919.0,60918.0,0.210419]
[1727914240489,0.17648306,60919.0,60918.0,0.256429]
[1727914240931,0.17648306,60919.0,60918.0,0.211419]
[1727914241155,0.17648306,60919.0,60918.0,0.20238]
[1727914241413,0.17648306,60919.0,60918.0,0.17538]
[1727914241657,0.17648306,60919.0,60918.0,0.20238]
[1727914242138,0.17648306,60919.0,60918.0,0.18938]
[1727914242371,0.17648306,60919.0,60918.0,0.23624206]
[1727914242633,0.17848306,60919.0,60918.0,0.18938]
[1727914242861,1.20064306,60919.0,60918.0,0.18938]
[1727914243108,1.20064306,60919.0,60918.0,0.17538]
[1727914243109,2.87791306,60919.0,60918.0,0.17538]
[1727914243336,3.11611206,60919.0,60918.0,0.18632055]
[1727914243555,3.11611206,60919.0,60918.0,0.18532055]
[1727914243792,3.11611206,60919.0,60896.0,0.24623062]
[1727914243793,0.266192,60904.0,60896.0,0.24623062]
[1727914244313,0.27875017,60904.0,60896.0,0.24623062]
[1727914244549,0.164211,60897.0,60896.0,0.24623062]
[1727914245022,0.164227,60891.0,60887.0,0.03301]
[1727914245266,0.164227,60891.0,60890.0,0.04614556]
[1727914245519,0.01244959,60891.0,60890.0,0.04614556]
[1727914246275,0.328421,60898.0,60891.0,0.03301]
[1727914246504,0.24623062,60900.0,60890.0,0.04614556]
[1727914246742,0.102,60903.0,60890.0,0.04614556]
[1727914246743,0.164227,60891.0,60890.0,0.001634]
[1727914246983,0.32842,60898.0,60892.0,0.03301]
[1727914247207,0.164215,60896.0,60892.0,0.03301]
[1727914247426,0.164218,60895.0,60893.0,0.0541342]
[1727914247673,0.328389,60904.0,60893.0,0.0541342]
[1727914247674,0.328408,60900.0,60893.0,0.0871442]
[1727914247926,0.164208,60899.0,60896.0,0.03301]
[1727914248678,0.164202,60901.0,60897.0,0.16421]
[1727914248939,0.164204,60900.0,60897.0,0.03629387]
[1727914249176,0.002,60912.0,60897.0,0.03629387]
[1727914249177,0.328375,60906.0,60899.0,0.22221]
[1727914249427,0.164194,60904.0,60901.0,0.023]
[1727914249687,0.164194,60904.0,60902.0,0.05058133]
[1727914249924,0.164195,60903.0,60902.0,0.04729774]
[1727914250159,0.164195,60903.0,60902.0,0.07029774]
[1727914250881,0.164195,60903.0,60902.0,0.08429774]
[1727914251364,0.328365,60908.0,60902.0,0.07029774]
[1727914251599,0.328356,60910.0,60903.0,0.05990181]
[1727914251600,0.164189,60906.0,60903.0,0.05990181]
[1727914251854,0.002,60935.0,60903.0,0.05990181]
[1727914251855,0.002,60921.0,60909.0,0.03301]
[1727914252078,0.0158347,60924.0,60909.0,0.03301]
[1727914252079,0.002,60923.0,60909.0,0.03301]
[1727914252314,0.0158347,60924.0,60914.0,0.164164]
[1727914252315,0.164353,60919.0,60914.0,0.164164]
[1727914252540,0.0002,60919.0,60915.0,0.0220174]
[1727914252789,0.0002,60919.0,60911.0,0.023]
[1727914252790,0.164159,60917.0,60913.0,0.023]
[1727914253034,0.164161,60916.0,60913.0,0.023]
[1727914253256,0.328312,60918.0,60915.0,0.023]
[1727914253754,0.164159,60917.0,60915.0,0.034]
[1727914254504,0.0002,60919.0,60915.0,0.023]
[1727914254505,0.164354,60919.0,60915.0,0.023]
[1727914254786,0.164156,60918.0,60916.0,0.01066721]
[1727914256628,0.164156,60918.0,60916.0,0.02266721]
[1727914256852,0.164156,60918.0,60916.0,0.03266721]
[1727914257103,0.0002,60919.0,60918.0,0.164155]
[1727914257346,0.0002,60919.0,60918.0,0.10461479]
[1727914258259,0.164352,60919.0,60918.0,0.1078975]
[1727914258481,0.164352,60919.0,60918.0,0.009]
[1727914259173,0.0002,60919.0,60918.0,0.02]
[1727914260155,0.164352,60919.0,60918.0,0.02]
[1727914260857,0.0002,60919.0,60918.0,0.02]
[1727914261095,0.0002,60919.0,60918.0,0.06443398]
[1727914261373,0.0002,60919.0,60918.0,0.22858898]
[1727914261840,0.0002,60919.0,60918.0,0.06443398]
[1727914262070,0.001016,60919.0,60918.0,0.06443398]
[1727914262298,0.165168,60919.0,60918.0,0.06443398]
[1727914262551,0.165168,60919.0,60918.0,0.02]
[1727914262839,0.265168,60919.0,60918.0,0.02]
[1727914263064,0.165168,60919.0,60918.0,0.02]
[1727914263571,0.001016,60919.0,60918.0,0.492765]
[1727914263818,0.001016,60919.0,60918.0,0.6312053]
[1727914264285,0.00382065,60928.0,60927.0,0.19714]
[1727914264535,0.00382065,60928.0,60927.0,0.22014]
[1727914264779,0.00382065,60928.0,60927.0,0.41404]
[1727914265026,0.01664476,60928.0,60927.0,0.41404]
[1727914265245,0.00382065,60928.0,60927.0,0.5215994]
[1727914265779,0.00382065,60928.0,60927.0,0.76738611]
[1727914266008,0.00382065,60928.0,60927.0,0.78638611]
[1727914267138,0.00382065,60928.0,60927.0,0.80038611]
[1727914268711,0.00382065,60928.0,60927.0,0.6371994]
[1727914271738,0.00382065,60928.0,60927.0,0.78638611]
[1727914271975,0.000817,60936.0,60935.0,0.225119]
[1727914272235,0.000817,60936.0,60935.0,0.38830571]
[1727914273149,0.000817,60936.0,60935.0,0.40230571]
[1727914273396,0.0002,60939.0,60938.0,0.225111]
[1727914273656,0.0002,60939.0,60938.0,0.58359771]
[1727914273899,0.0002,60939.0,60938.0,0.62018339]
[1727914274639,0.0002,60939.0,60938.0,0.63418339]
[1727914274872,0.0002,60939.0,60938.0,0.30189568]
[1727914275120,0.24623062,60949.0,60938.0,0.30189568]
[1727914275121,0.001016,60959.0,60949.0,0.03801]
[1727914275366,0.001016,60959.0,60949.0,0.25131]
[1727914275367,0.24704662,60956.0,60949.0,0.25131]
[1727914275611,0.164067,60951.0,60949.0,0.058641]
[1727914275836,0.164884,60950.0,60949.0,0.058641]
[1727914276063,0.164884,60950.0,60949.0,0.03301]
[1727914276302,0.16408,60946.0,60944.0,0.03301]
[1727914276619,0.000816,60950.0,60944.0,0.03301]
[1727914276809,0.164075,60948.0,60944.0,0.03301]
[1727914277027,0.164075,60948.0,60945.0,0.08027286]
[1727914277769,0.164079,60946.0,60945.0,0.08027286]
[1727914278000,0.164082,60945.0,60944.0,0.014]
[1727914278987,0.000816,60950.0,60945.0,0.03301]
[1727914279207,0.164886,60950.0,60945.0,0.03629127]
[1727914279445,0.000816,60950.0,60947.0,0.03301]
[1727914279673,0.000816,60950.0,60946.0,0.11079589]
[1727914279674,0.000816,60950.0,60949.0,0.220081]
[1727914279897,0.000816,60950.0,60949.0,0.22836174]
[1727914280125,0.000816,60950.0,60949.0,0.50375226]
[1727914280390,0.000816,60956.0,60949.0,0.50375226]
[1727914280391,0.000816,60956.0,60955.0,0.05601]
[1727914280886,0.000816,60956.0,60955.0,0.03301]
[1727914281153,0.000816,60956.0,60949.0,0.12620381]
[1727914281154,0.492186,60953.0,60952.0,0.24623062]
[1727914281407,0.000816,60956.0,60952.0,0.44393062]
[1727914281408,0.00983092,60956.0,60952.0,0.44393062]
[1727914281642,0.16406,60953.0,60952.0,0.1977]
[1727914281865,0.328125,60953.0,60949.0,0.014]
[1727914282103,0.166068,60950.0,60949.0,0.014]
[1727914282349,0.164074,60948.0,60947.0,0.03301]
[1727914282567,0.164074,60948.0,60944.0,0.24623062]
[1727914282568,0.164082,60945.0,60944.0,0.24623062]
[1727914283030,0.164082,60945.0,60938.0,0.20068568]
[1727914283031,0.00949829,60945.0,60938.0,0.20068568]
[1727914283257,0.164087,60944.0,60939.0,0.27511983]
[1727914283489,0.17358229,60945.0,60941.0,0.03301]
[1727914283749,0.00939128,60943.0,60942.0,0.16409]
[1727914283982,0.328139,60950.0,60942.0,0.023]
[1727914284283,0.164081,60946.0,60945.0,0.03301]
[1727914284534,0.164075,60948.0,60945.0,0.03301]
[1727914284763,0.164079,60946.0,60945.0,0.03301]
[1727914285006,0.166082,60945.0,60944.0,0.014]
[1727914285229,0.166082,60945.0,60944.0,0.028]
[1727914285442,0.164082,60945.0,60944.0,0.014]
[1727914285907,0.164082,60945.0,60939.0,0.03301]
[1727914285908,0.164095,60940.0,60939.0,0.03301]
[1727914287124,0.1,60951.0,60940.0,0.03301]
[1727914287350,0.164082,60945.0,60941.0,0.16552356]
[1727914287588,0.164082,60945.0,60942.0,0.07956346]
[1727914287808,0.000816,60948.0,60944.0,0.014]
[1727914288052,0.000816,60948.0,60944.0,0.01543049]
[1727914288270,0.164079,60947.0,60944.0,0.01728136]
[1727914288505,0.164079,60946.0,60945.0,0.05475554]
[1727914288740,0.164079,60946.0,60941.0,0.169092]
[1727914288957,0.164082,60945.0,60941.0,0.41532262]
[1727914289184,0.000816,60948.0,60942.0,0.10544346]
[1727914289484,0.000816,60948.0,60947.0,0.03301]
[1727914289706,0.16489,60948.0,60947.0,0.03301]
[1727914290411,0.000816,60948.0,60943.0,0.03301]
[1727914290654,0.000816,60948.0,60944.0,0.09996841]
[1727914290655,0.164083,60945.0,60944.0,0.09996841]
[1727914290912,0.164082,60945.0,60944.0,0.09996841]
[1727914291161,0.164082,60945.0,60944.0,0.06695841]
[1727914291162,0.17557603,60945.0,60944.0,0.06695841]
[1727914291403,0.16409,60942.0,60941.0,0.24623062]
[1727914291653,0.16409,60942.0,60941.0,0.26023062]
[1727914291888,0.17346957,60942.0,60941.0,0.014]
[1727914292137,0.00937957,60942.0,60941.0,0.211103]
[1727914292393,0.00937957,60942.0,60941.0,0.32416036]
[1727914292644,0.000816,60948.0,60946.0,0.03301]
[1727914293154,0.16489,60948.0,60947.0,0.03301]
[1727914293375,0.493039,60948.0,60947.0,0.03301]
[1727914294134,0.493039,60948.0,60941.0,0.08413934]
[1727914294135,0.16609,60942.0,60941.0,0.08413934]
[1727914294381,0.16609,60942.0,60933.0,0.03301]
[1727914294382,0.164095,60940.0,60939.0,0.24623062]
[1727914294890,0.002,60938.0,60933.0,0.03301]
[1727914295131,0.16411,60935.0,60934.0,0.03301]
[1727914296104,0.656424,60937.0,60931.0,0.03301]
[1727914296105,0.328212,60937.0,60931.0,0.03301]
[1727914296351,0.164112,60934.0,60933.0,0.03301]
[1727914296834,0.17347648,60934.0,60933.0,0.03301]
[1727914297091,0.00936448,60934.0,60933.0,0.03301]
[1727914297572,0.164111,60934.0,60932.0,0.03301]
[1727914297815,0.00938514,60934.0,60932.0,0.197126]
[1727914298055,0.00938514,60934.0,60933.0,0.13204066]
[1727914298306,0.164107,60936.0,60933.0,0.14604066]
[1727914298544,0.00945348,60934.0,60933.0,0.13204066]
[1727914298763,0.164107,60936.0,60933.0,0.29615466]
[1727914299023,0.328176,60943.0,60933.0,0.29615466]
[1727914299024,0.002,60950.0,60933.0,0.1353226]
[1727914299283,0.002,60950.0,60938.0,0.03301]
[1727914299536,0.328174,60944.0,60938.0,0.197109]
[1727914299813,0.164092,60942.0,60940.0,0.03301]
[1727914300313,0.000816,60948.0,60947.0,0.197086]
[1727914300562,0.000816,60948.0,60947.0,0.03301]
[1727914301040,0.000816,60948.0,60942.0,0.328179]
[1727914301041,0.002,60947.0,60942.0,0.03301]
[1727914301297,0.000816,60948.0,60944.0,0.197094]
[1727914301772,0.000816,60948.0,60947.0,0.04701]
[1727914302016,0.000816,60948.0,60947.0,0.087175]
[1727914302709,0.000816,60948.0,60947.0,0.101175]
[1727914303187,0.16489,60948.0,60947.0,0.101175]
[1727914303426,0.16489,60948.0,60947.0,0.04701]
[1727914303659,0.16489,60948.0,60947.0,0.03301]
[1727914303895,0.16489,60948.0,60943.0,0.08432539]
[1727914304128,0.16489,60948.0,60947.0,0.014]
[1727914304364,0.24589,60948.0,60947.0,0.014]
[1727914305758,0.24589,60948.0,60939.0,0.05286018]
[1727914305759,0.166095,60940.0,60939.0,0.05286018]
[1727914307216,0.166095,60940.0,60932.0,0.03301]
[1727914307217,0.164111,60934.0,60932.0,0.03301]
[1727914307477,0.328173,60944.0,60934.0,0.51172]
[1727914307751,0.328173,60944.0,60940.0,0.03301]
[1727914308009,0.05193705,60948.0,60947.0,0.164076]
[1727914308010,0.000816,60948.0,60947.0,0.164076]
[1727914308235,0.000816,60948.0,60947.0,0.2496122]
[1727914308466,0.000816,60948.0,60947.0,0.25134789]
[1727914308713,0.000816,60948.0,60947.0,0.2166022]
[1727914308956,0.00857935,60948.0,60947.0,0.2496122]
[1727914309214,0.000816,60948.0,60947.0,0.4331122]
[1727914310148,0.000816,60948.0,60947.0,0.46988217]
[1727914310370,0.000816,60948.0,60947.0,0.54767618]
[1727914310622,0.000816,60948.0,60947.0,0.94809351]
[1727914310855,0.000816,60948.0,60947.0,0.81586289]
[1727914311159,0.000816,60953.0,60952.0,0.407273]
[1727914311376,0.000816,60953.0,60952.0,0.73364642]
[1727914312330,0.000816,60953.0,60952.0,0.89369033]
[1727914312576,0.000816,60953.0,60952.0,0.68445971]
[1727914313076,0.000816,60953.0,60952.0,0.39239671]
[1727914313307,0.164876,60953.0,60952.0,0.40639671]
[1727914313528,0.00866215,60953.0,60952.0,0.40639671]
[1727914313753,0.00866215,60953.0,60952.0,0.22921]
[1727914313985,0.00866215,60953.0,60952.0,0.21521]
[1727914314221,0.00866215,60953.0,60952.0,0.24321]
[1727914317085,0.0344283,60953.0,60952.0,0.07888322]
[1727914317330,0.1984883,60953.0,60952.0,0.06488322]
[1727914317570,0.1984883,60953.0,60952.0,0.07888322]
[1727914317827,0.0344283,60953.0,60952.0,0.06488322]
[1727914318076,0.0344283,60953.0,60952.0,0.24622715]
[1727914318302,0.02653289,60953.0,60952.0,0.53842715]
[1727914318530,0.02653289,60953.0,60952.0,0.53514622]
[1727914318773,0.02653289,60953.0,60952.0,0.52114622]
[1727914319013,0.02653289,60953.0,60952.0,0.50714622]
[1727914319269,0.02653289,60953.0,60952.0,0.51614622]
[1727914319722,0.0344295,60953.0,60952.0,0.50214622]
[1727914319970,0.0344295,60953.0,60952.0,0.24868322]
[1727914320255,0.0344295,60953.0,60952.0,0.41274622]
[1727914320745,0.19059289,60953.0,60952.0,0.07888322]
[1727914320978,0.03441961,60953.0,60952.0,0.06488322]
[1727914321204,0.19059289,60953.0,60952.0,0.07888322]
[1727914321435,0.164876,60953.0,60952.0,0.07888322]
[1727914321664,0.17276932,60953.0,60952.0,0.07888322]
[1727914321945,0.17276932,60953.0,60952.0,0.06101]
[1727914322216,0.17276932,60953.0,60952.0,0.028]
[1727914322217,0.17476932,60953.0,60952.0,0.028]
[1727914322738,0.2004887,60953.0,60952.0,0.028]
[1727914322928,0.2004887,60953.0,60952.0,0.014]
[1727914323161,0.2004887,60953.0,60952.0,0.028]
[1727914323645,0.2004887,60953.0,60952.0,0.014]
[1727914323895,0.2004887,60953.0,60952.0,0.028]
[1727914324152,0.17476932,60953.0,60952.0,0.028]
[1727914324395,0.20049025,60953.0,60952.0,0.028]
[1727914326566,0.24961271,60953.0,60952.0,0.028]
[1727914326795,0.20049025,60953.0,60952.0,0.028]
[1727914327533,0.21767109,60953.0,60952.0,0.028]
[1727914328723,0.31767109,60953.0,60952.0,0.028]
[1727914328960,0.39135479,60953.0,60952.0,0.028]
[1727914329187,0.31767109,60953.0,60952.0,0.028]
[1727914329417,0.39138594,60953.0,60952.0,0.028]
[1727914329912,0.31767109,60953.0,60952.0,0.028]
[1727914330138,0.39138328,60953.0,60952.0,0.028]
[1727914330656,0.59387174,60953.0,60952.0,0.028]
[1727914331105,0.7167254,60953.0,60952.0,0.028]
[1727914331824,0.166074,60948.0,60947.0,0.001632]
[1727914332043,0.166074,60948.0,60947.0,0.02641826]
[1727914332264,0.1739236,60948.0,60947.0,0.02641826]
[1727914333259,0.22306566,60948.0,60947.0,0.02641826]
[1727914333743,0.22306566,60948.0,60947.0,0.04041826]
[1727914333998,0.32306566,60948.0,60947.0,0.029632]
[1727914334261,1.01804752,60948.0,60947.0,0.029632]
[1727914334486,0.4693384,60948.0,60947.0,0.029632]
[1727914334718,0.59217988,60948.0,60947.0,0.029632]
[1727914334936,0.59217988,60948.0,60947.0,0.001632]
[1727914335401,0.59217143,60948.0,60947.0,0.005632]
[1727914335675,0.56759675,60948.0,60947.0,0.005632]
[1727914335899,0.59217143,60948.0,60947.0,0.005632]
[1727914336160,0.4693384,60948.0,60947.0,0.005632]
[1727914336389,0.4693384,60948.0,60947.0,0.004632]
[1727914336603,0.59217143,60948.0,60947.0,0.004632]
[1727914336821,0.4703384,60948.0,60947.0,0.004632]
[1727914337042,0.4703384,60948.0,60947.0,0.001632]
[1727914337256,0.59330777,60948.0,60947.0,0.001632]
[1727914337776,0.79323411,60948.0,60947.0,1e-06]
[1727914338014,0.80057912,60948.0,60947.0,1e-06]
[1727914338290,1.07306798,60948.0,60947.0,0.001001]
[1727914338523,1.07106798,60948.0,60947.0,0.001001]
[1727914338745,1.07306798,60948.0,60947.0,0.001001]
[1727914338979,1.04559753,60948.0,60947.0,1e-06]
[1727914339932,1.04859753,60948.0,60947.0,0.001001]
[1727914340380,1.04759753,60948.0,60947.0,0.001001]
[1727914340608,1.00266688,60948.0,60947.0,1e-06]
[1727914340869,0.264101,60938.0,60937.0,0.24623062]
[1727914341099,0.53613403,60938.0,60937.0,0.24623062]
[1727914341310,0.54367415,60938.0,60937.0,0.24623062]
[1727914341541,0.266111,60934.0,60929.0,0.24623062]
[1727914341760,0.21319051,60934.0,60933.0,0.02641826]
[1727914341983,0.17176235,60934.0,60933.0,0.02641826]
[1727914342479,0.17176235,60934.0,60933.0,0.001632]
[1727914342720,0.19749013,60934.0,60933.0,0.001632]
[1727914343148,0.19949013,60934.0,60933.0,0.001632]
[1727914344041,0.19949013,60934.0,60933.0,0.008632]
[1727914344291,0.27376235,60934.0,60933.0,0.008632]
[1727914344536,0.27376235,60934.0,60933.0,0.001632]
[1727914344750,0.27376235,60934.0,60933.0,0.018632]
[1727914344983,0.59947235,60934.0,60933.0,0.018632]
[1727914345422,0.39026135,60934.0,60933.0,0.018632]
[1727914345640,0.17376235,60934.0,60933.0,0.018632]
[1727914345997,0.17376235,60934.0,60933.0,0.0476752]
[1727914347235,0.19949119,60934.0,60933.0,0.0476752]
[1727914349340,0.03338019,60934.0,60933.0,0.0476752]
[1727914349599,0.03338019,60934.0,60933.0,0.37162785]
[1727914349839,0.02572884,60934.0,60933.0,0.368346]
[1727914350307,0.02572884,60934.0,60933.0,0.394356]
[1727914350561,0.02572884,60934.0,60933.0,0.5479958]
[1727914351043,0.02572884,60934.0,60933.0,0.5309958]
[1727914351280,0.02572884,60934.0,60933.0,0.5539958]
[1727914351527,0.02572884,60934.0,60933.0,0.5449958]
[1727914351769,0.02572884,60934.0,60933.0,0.5589958]
[1727914352681,0.02572884,60934.0,60933.0,0.5449958]
[1727914352909,0.02572884,60934.0,60933.0,0.5589958]
[1727914355657,0.330964,60948.0,60947.0,0.220086]
[1727914355658,0.000816,60948.0,60947.0,0.220086]
[1727914355910,0.000816,60948.0,60947.0,0.49228588]
[1727914356161,0.000816,60948.0,60947.0,0.490386]
[1727914357161,0.000816,60953.0,60952.0,0.197073]
[1727914357411,0.002,60971.0,60952.0,0.197073]
[1727914357412,0.164029,60965.0,60961.0,0.03301]
[1727914357652,0.328043,60968.0,60961.0,0.03301]
[1727914357653,0.328052,60966.0,60961.0,0.03301]
[1727914357895,0.328043,60968.0,60961.0,0.03301]
[1727914357896,0.164034,60963.0,60961.0,0.03301]
[1727914358137,0.164034,60963.0,60962.0,0.0691204]
[1727914358644,0.164034,60963.0,60954.0,0.328115]
[1727914358645,0.16406,60953.0,60952.0,0.10445277]
[1727914358883,0.328117,60954.0,60946.0,0.239677]
[1727914359124,0.16606,60953.0,60952.0,0.014]
[1727914359375,0.16406,60953.0,60952.0,0.014]
[1727914360093,0.164067,60951.0,60948.0,0.03301]
[1727914360328,0.164067,60951.0,60949.0,0.10448846]
[1727914360579,0.18978615,60951.0,60949.0,0.10448846]
[1727914360823,0.164068,60950.0,60949.0,0.10448846]
[1727914361588,0.18978515,60951.0,60949.0,0.10448846]
[1727914361836,0.19178515,60951.0,60950.0,0.08212051]
[1727914362078,0.18978515,60951.0,60950.0,0.08212051]
[1727914362335,0.02571915,60951.0,60950.0,0.73122913]
[1727914362615,0.02571915,60951.0,60950.0,0.57199851]
[1727914362859,0.02571915,60951.0,60950.0,0.37993051]
[1727914363350,0.02571915,60951.0,60950.0,0.29781]
[1727914363351,0.18978515,60951.0,60950.0,0.29781]
[1727914363599,0.02571915,60951.0,60950.0,0.29781]
[1727914364826,0.18978515,60951.0,60950.0,0.29781]
[1727914365055,0.02571915,60951.0,60950.0,0.31181]
[1727914365275,0.02571915,60951.0,60950.0,0.40283706]
[1727914365507,0.02571915,60951.0,60950.0,0.43083706]
[1727914365991,0.02571915,60951.0,60950.0,0.41683706]
[1727914366238,0.18978515,60951.0,60950.0,0.43083706]
[1727914366710,0.18978515,60951.0,60950.0,0.41683706]
[1727914366948,0.18978515,60951.0,60950.0,0.33483706]
[1727914367185,0.18978515,60951.0,60950.0,0.22981]
[1727914367443,0.18978515,60951.0,60950.0,0.24381]
[1727914367688,0.19178515,60951.0,60950.0,0.22981]
[1727914367949,0.19178515,60951.0,60950.0,0.028]
[1727914368412,0.18978515,60951.0,60950.0,0.028]
[1727914368641,0.18978515,60951.0,60950.0,0.03072406]
[1727914368876,0.18978515,60951.0,60950.0,0.04472406]
[1727914369104,0.18978515,60951.0,60950.0,0.05872406]
[1727914369333,0.18978515,60951.0,60950.0,0.04472406]
[1727914369869,0.18978515,60951.0,60950.0,0.05872406]
[1727914370118,0.18978515,60951.0,60950.0,0.04472406]
[1727914370364,0.18978515,60951.0,60950.0,0.05872406]
[1727914370605,0.19178515,60951.0,60950.0,0.05872406]
[1727914370850,0.19178515,60951.0,60950.0,0.04472406]
[1727914371109,0.19178515,60951.0,60950.0,0.05872406]
[1727914371580,0.19178515,60951.0,60931.0,0.71343062]
[1727914371581,0.164098,60939.0,60936.0,0.1951]
[1727914371879,0.164098,60939.0,60934.0,0.13027838]
[1727914372127,0.164098,60939.0,60932.0,0.0756]
[1727914372362,0.18982129,60939.0,60932.0,0.239715]
[1727914372587,0.002,60937.0,60933.0,0.034642]
[1727914372817,0.164107,60936.0,60934.0,0.08816726]
[1727914373045,0.002,60937.0,60934.0,0.08816726]
[1727914373268,0.164109,60935.0,60934.0,0.08816726]
[1727914373755,0.166109,60935.0,60934.0,0.08816726]
[1727914373982,0.164109,60935.0,60934.0,0.08816726]
[1727914374954,0.164109,60935.0,60934.0,0.10216726]
[1727914375198,0.02572329,60939.0,60934.0,0.11616726]
[1727914375453,0.18982129,60939.0,60936.0,0.03301]
[1727914375704,0.02572329,60939.0,60936.0,0.03301]
[1727914375988,0.02572329,60939.0,60938.0,0.46634162]
[1727914376282,0.02572329,60939.0,60938.0,0.50726012]
[1727914377543,0.328127,60952.0,60945.0,0.361174]
[1727914377824,0.328127,60952.0,60944.0,0.328166]
[1727914377825,0.164064,60952.0,60949.0,0.03301]
[1727914378081,0.000816,60953.0,60952.0,0.225073]
[1727914378345,0.000816,60953.0,60952.0,0.34492324]
[1727914378588,0.000816,60953.0,60952.0,0.33664263]
[1727914378823,0.000816,60953.0,60952.0,0.14957963]
[1727914378824,0.164876,60953.0,60952.0,0.14957963]
[1727914379055,0.164876,60953.0,60952.0,0.03301]
[1727914379285,0.164876,60953.0,60952.0,0.04701]
[1727914379512,0.164876,60953.0,60952.0,0.03301]
[1727914380275,0.164067,60951.0,60948.0,0.03301]
[1727914380512,0.328938,60953.0,60947.0,0.24623062]
[1727914380513,0.000816,60953.0,60952.0,0.197073]
[1727914380746,0.164048,60958.0,60954.0,0.03301]
[1727914380993,0.000816,60959.0,60958.0,0.220057]
[1727914381936,0.02571578,60964.0,60963.0,0.164033]
[1727914382172,0.02571578,60964.0,60963.0,0.19569824]
[1727914383352,0.02571578,60964.0,60963.0,0.21869824]
[1727914383613,0.0001,60973.0,60972.0,0.197019]
[1727914383861,0.0001,60973.0,60972.0,0.20023279]
[1727914384089,0.0001,60973.0,60972.0,0.22323279]
[1727914384466,0.164107,60973.0,60972.0,0.03301]
[1727914384701,0.0021,60973.0,60964.0,0.14612145]
[1727914384950,0.164028,60965.0,60964.0,0.03301]
[1727914385660,0.164028,60965.0,60963.0,0.03301]
[1727914385884,0.002,60972.0,60963.0,0.03301]
[1727914385885,0.0021,60973.0,60963.0,0.03301]
[1727914386103,0.0021,60973.0,60962.0,0.1953]
[1727914386104,0.164025,60967.0,60964.0,0.04701]
[1727914386329,0.164026,60966.0,60965.0,0.04935406]
[1727914386548,0.328036,60969.0,60965.0,0.08236406]
[1727914386806,0.164025,60966.0,60965.0,0.08236406]
[1727914387763,0.164025,60966.0,60965.0,0.09636406]
[1727914387982,0.164025,60966.0,60965.0,0.08236406]
[1727914388229,0.164025,60966.0,60965.0,0.09636406]
[1727914388487,0.164025,60966.0,60965.0,0.11036406]
[1727914388965,0.164025,60966.0,60965.0,0.06101]
[1727914389225,0.164025,60966.0,60965.0,0.028]
[1727914389226,0.166025,60966.0,60965.0,0.028]
[1727914389685,0.166025,60966.0,60965.0,0.014]
[1727914389933,0.166025,60966.0,60965.0,0.028]
[1727914390173,0.166025,60966.0,60965.0,0.014]
[1727914390647,0.166025,60966.0,60965.0,0.023]
[1727914391334,0.164044,60959.0,60958.0,0.001634]
[1727914391616,0.164044,60959.0,60958.0,0.03601992]
[1727914391840,0.166044,60959.0,60958.0,0.03601992]
[1727914392310,0.164044,60959.0,60958.0,0.03601992]
[1727914393029,0.166044,60959.0,60958.0,0.001634]
[1727914393307,0.266044,60959.0,60958.0,0.001634]
[1727914393539,1.09173781,60959.0,60958.0,0.001634]
[1727914393790,0.8945669,60959.0,60958.0,0.001634]
[1727914394022,0.79657081,60959.0,60958.0,0.015634]
[1727914394261,0.79657081,60959.0,60958.0,0.001634]
[1727914394262,1.08425263,60959.0,60958.0,0.001634]
[1727914394520,1.08425263,60959.0,60958.0,0.021634]
[1727914394521,0.96175752,60959.0,60958.0,0.021634]
[1727914394770,0.82429443,60959.0,60958.0,0.015634]
[1727914394967,0.82429443,60959.0,60958.0,0.007634]
[1727914395277,0.82429443,60959.0,60958.0,0.005634]
[1727914395547,0.82429443,60959.0,60947.0,0.24623062]
[1727914395548,0.264074,60948.0,60947.0,0.24623062]
[1727914395805,1.854145,60948.0,60947.0,0.24623062]
[1727914396052,1.854145,60948.0,60934.0,0.001632]
[1727914396053,0.002,60940.0,60934.0,0.001632]
[1727914396306,3.34821086,60940.0,60934.0,0.001632]
[1727914396561,1.5835038,60940.0,60934.0,0.001632]
[1727914396806,0.266109,60935.0,60934.0,0.001632]
[1727914397051,1.18556755,60935.0,60934.0,0.001632]
[1727914397265,1.51555465,60935.0,60934.0,0.001632]
[1727914397492,1.26538025,60935.0,60934.0,0.001632]
[1727914397751,1.4872912,60935.0,60934.0,0.001632]
[1727914397992,1.5326859,60935.0,60934.0,0.001632]
[1727914398238,1.43453665,60935.0,60934.0,0.003632]
[1727914398474,1.55722234,60935.0,60934.0,0.003632]
[1727914398692,1.55522234,60935.0,60934.0,0.003632]
[1727914398949,0.76041795,60935.0,60934.0,0.003632]
[1727914399202,0.56423843,60935.0,60934.0,0.003632]
[1727914399948,0.63776998,60935.0,60934.0,0.003632]
[1727914400214,0.61324106,60935.0,60934.0,0.003632]
[1727914400480,0.63776998,60935.0,60934.0,0.003632]
[1727914400719,0.56623843,60935.0,60934.0,0.003632]
[1727914401186,0.61521834,60935.0,60934.0,0.003632]
[1727914401654,0.56623843,60935.0,60934.0,0.003632]
[1727914401844,2.06863198,60935.0,60934.0,0.003632]
[1727914402129,2.20924098,60935.0,60934.0,0.003632]
[1727914402603,2.23004471,60935.0,60934.0,0.003632]
[1727914402864,2.13570943,60935.0,60934.0,1e-06]
[1727914403098,0.28984043,60935.0,60934.0,1e-06]
[1727914403351,0.266109,60935.0,60934.0,1e-06]
[1727914403849,0.164109,60935.0,60934.0,1e-06]
[1727914404082,0.166109,60935.0,60934.0,0.0280943]
[1727914404540,0.166109,60935.0,60934.0,0.0280933]
[1727914405002,0.166109,60935.0,60934.0,0.0310933]
[1727914405255,0.266109,60935.0,60934.0,0.0280933]
[1727914405480,0.267109,60935.0,60934.0,0.0390933]
[1727914406199,0.167109,60935.0,60934.0,0.0390933]
[1727914406958,0.167109,60935.0,60934.0,0.0280933]
[1727914407206,0.166109,60935.0,60934.0,0.0280933]
[1727914407694,0.167109,60935.0,60934.0,0.0370933]
[1727914407916,0.167109,60935.0,60934.0,0.0350933]